fUST/lending_fUST_20250808
["ID","MTS","AMOUNT","RATE_DAILY","PERIOD"]
[377880763,1754593840655,-311.96830895,0.00021917,2]
[377880764,1754593840664,-460.0,0.00021917,2]
[377880765,1754593840674,-460.0,0.00021917,2]
[377880766,1754593840683,-460.0,0.00021917,2]
[377880767,1754593840692,-706.4,0.00021917,2]
[377880768,1754593840701,-460.0,0.00021917,2]
[377880769,1754593840710,-460.0,0.00021917,2]
[377880770,1754593840719,-460.0,0.00021917,2]
[377880771,1754593840729,-460.0,0.00021917,2]
[377880772,1754593840738,-460.0,0.00021917,2]
[377880773,1754593840750,-460.0,0.00021917,2]
[377880774,1754593840760,-545.81,0.00021917,2]
[377880775,1754593840769,-460.0,0.00021917,2]
[377880776,1754593840779,-460.0,0.00021917,2]
[377880777,1754593840788,-460.0,0.00021917,2]
[377880778,1754593840798,-445.9826461,0.00021917,2]
[377880779,1754593840808,-460.0,0.00021917,2]
[377880780,1754593840817,-1158.33,0.00021917,2]
[377880781,1754593840827,-460.0,0.00021917,2]
[377880782,1754593840837,-460.0,0.00021917,2]
[377880783,1754593840846,-229.77,0.00021917,2]
[377880784,1754593840856,-460.0,0.00021917,2]
[377880785,1754593840865,-1290.83,0.00021917,2]
[377880786,1754593840875,-460.0,0.00021917,2]
[377880787,1754593840884,-460.0,0.00021917,2]
[377880788,1754593840894,-1608.29,0.00021917,2]
[377880789,1754593840903,-580.71,0.00021917,2]
[377880790,1754593840913,-460.0,0.00021917,2]
[377880791,1754593840923,-1290.84,0.00021917,2]
[377880792,1754593840933,-460.0,0.00021917,2]
[377880793,1754593840942,-460.0,0.00021917,2]
[377880794,1754593840952,-460.0,0.00021917,2]
[377880795,1754593840962,-2375.32,0.00021917,2]
[377880796,1754593840971,-460.0,0.00021917,2]
[377880797,1754593840981,-460.0,0.00021917,2]
[377880798,1754593840991,-460.0,0.00021917,2]
[377880799,1754593841001,-460.0,0.00021917,2]
[377880800,1754593841010,-460.0,0.00021917,2]
[377880801,1754593841021,-516.53,0.00021917,2]
[377880802,1754593841031,-789.88,0.00021917,2]
[377880803,1754593841041,-460.0,0.00021917,2]
[377880804,1754593841052,-460.0,0.00021917,2]
[377880805,1754593841063,-478.03908703,0.00021917,2]
[377880806,1754593841073,-460.0,0.00021917,2]
[377880807,1754593841083,-460.0,0.00021917,2]
[377880808,1754593841093,-460.0,0.00021917,2]
[377880809,1754593841103,-460.0,0.00021917,2]
[377880810,1754593841113,-460.0,0.00021917,2]
[377880811,1754593841123,-460.0,0.00021917,2]
[377880812,1754593841132,-472.29365182,0.00021917,2]
[377880813,1754593841142,-509.17,0.00021917,2]
[377880814,1754593841154,-460.0,0.00021917,2]
[377880815,1754593841164,-460.0,0.00021917,2]
[377880816,1754593841382,-460.0,0.00021917,2]
[377880817,1754593841392,-460.0,0.00021917,2]
[377880818,1754593841402,-460.0,0.00021917,2]
[377880819,1754593841411,-460.0,0.00021917,2]
[377880820,1754593841420,-567.06222529,0.00021917,2]
[377880821,1754593841432,-460.0,0.00021917,2]
[377880822,1754593841441,-460.0,0.00021917,2]
[377880823,1754593841451,-460.0,0.00021917,2]
[377880824,1754593841460,-405.48,0.00022,2]
[377880825,1754593841470,-156.0,0.00022,2]
[377880826,1754593841479,-500.0,0.00022173,2]
[377880827,1754593841488,-500.0,0.00022173,2]
[377880828,1754593841498,-500.0,0.00022173,2]
[377880829,1754593841509,-500.0,0.00022173,2]
[377880830,1754593841519,-460.0,0.00022191,2]
[377880831,1754593841528,-460.0,0.00022191,2]
[377880832,1754593841538,-460.0,0.00022191,2]
[377880833,1754593841547,-460.0,0.00022191,2]
[377880834,1754593841556,-460.0,0.00022191,2]
[377880835,1754593841565,-809.2,0.00022191,2]
[377880836,1754593841574,-911.81,0.00022191,2]
[377880837,1754593841584,-460.0,0.00022191,2]
[377880838,1754593841593,-460.0,0.00022191,2]
[377880839,1754593841602,-460.0,0.00022191,2]
[377880840,1754593841611,-460.0,0.00022191,2]
[377880841,1754593841621,-593.79,0.00022191,2]
[377880842,1754593841630,-460.0,0.00022191,2]
[377880843,1754593841639,-460.0,0.00022191,2]
[377880844,1754593841648,-413.77319874,0.00022191,2]
[377880845,1754593841658,-475.28,0.00022191,2]
[377880846,1754593841667,-460.0,0.00022191,2]
[377880847,1754593841676,-460.0,0.00022191,2]
[377880848,1754593841686,-1166.29,0.00022191,2]
[377880849,1754593841695,-460.0,0.00022191,2]
[377880850,1754593841704,-460.0,0.00022191,2]
[377880851,1754593841714,-460.0,0.00022191,2]
[377880852,1754593841723,-460.0,0.00022191,2]
[377880853,1754593841733,-460.0,0.00022191,2]
[377880854,1754593841742,-460.0,0.00022191,2]
[377880855,1754593841752,-460.0,0.00022191,2]
[377880856,1754593841761,-460.0,0.00022191,2]
[377880857,1754593841771,-460.0,0.00022191,2]
[377880858,1754593841780,-542.83,0.00022191,2]
[377880859,1754593841790,-460.0,0.00022191,2]
[377880860,1754593841799,-460.0,0.00022191,2]
[377880861,1754593841809,-460.0,0.00022191,2]
[377880862,1754593841818,-467.18160452,0.00022191,2]
[377880863,1754593841827,-460.0,0.00022191,2]
[377880864,1754593841837,-460.0,0.00022191,2]
[377880865,1754593841846,-460.0,0.00022191,2]
[377880866,1754593841856,-1494.38,0.00022191,2]
[377880867,1754593841865,-460.0,0.00022191,2]
[377880868,1754593841875,-460.0,0.00022191,2]
[377880869,1754593841884,-671.8,0.00022191,2]
[377880870,1754593841893,-460.0,0.00022191,2]
[377880871,1754593841903,-460.0,0.00022191,2]
[377880872,1754593841912,-598.26,0.00022191,2]
[377880873,1754593841921,-460.0,0.00022191,2]
[377880874,1754593841930,-460.0,0.00022191,2]
[377880875,1754593841939,-460.0,0.00022191,2]
[377880876,1754593841949,-460.0,0.00022191,2]
[377880877,1754593841958,-460.0,0.00022191,2]
[377880878,1754593841968,-473.56099447,0.00022191,2]
[377880879,1754593841977,-460.0,0.00022191,2]
[377880880,1754593841986,-460.0,0.00022191,2]
[377880881,1754593841996,-820.72,0.00022191,2]
[377880882,1754593842005,-460.0,0.00022191,2]
[377880883,1754593842015,-460.0,0.00022191,2]
[377880884,1754593842024,-473.3698218,0.00022191,2]
[377880885,1754593842034,-460.0,0.00022191,2]
[377880886,1754593842044,-460.0,0.00022191,2]
[377880887,1754593842053,-460.0,0.00022191,2]
[377880888,1754593842063,-460.0,0.00022191,2]
[377880889,1754593842072,-153.40488687,0.00022191,2]
[377880890,1754593842082,-460.0,0.00022191,2]
[377880891,1754593842092,-460.0,0.00022191,2]
[377880892,1754593842102,-460.0,0.00022191,2]
[377880893,1754593842111,-634.93,0.00022191,2]
[377880894,1754593842120,-460.0,0.00022191,2]
[377880895,1754593842129,-460.0,0.00022191,2]
[377880896,1754593842138,-641.76,0.00022191,2]
[377880897,1754593842147,-463.87659396,0.00022191,2]
[377880898,1754593842156,-460.0,0.00022191,2]
[377880899,1754593842165,-467.23216925,0.00022191,2]
[377880900,1754593842174,-409.58466523,0.00022191,2]
[377880901,1754593842183,-460.0,0.00022191,2]
[377880902,1754593842192,-915.78,0.00022191,2]
[377880903,1754593842201,-474.77669239,0.00022191,2]
[377880904,1754593842211,-462.41234944,0.00022191,2]
[377880905,1754593842220,-966.26,0.00022191,2]
[377880906,1754593842229,-460.0,0.00022191,2]
[377880907,1754593842238,-718.07,0.00022191,2]
[377880908,1754593842248,-1628.99,0.00022191,2]
[377880909,1754593842257,-460.0,0.00022191,2]
[377880910,1754593842266,-460.0,0.00022191,2]
[377880911,1754593842275,-1021.36,0.00022191,2]
[377880912,1754593842284,-460.0,0.00022191,2]
[377880913,1754593842293,-460.0,0.00022191,2]
[377880914,1754593842302,-513.46,0.00022191,2]
[377880915,1754593842311,-460.0,0.00022191,2]
[377880916,1754593842320,-460.0,0.00022191,2]
[377880917,1754593842329,-460.0,0.00022191,2]
[377880918,1754593842338,-460.0,0.00022191,2]
[377880919,1754593842347,-460.0,0.00022191,2]
[377880920,1754593842356,-460.0,0.00022191,2]
[377880921,1754593842365,-460.0,0.00022191,2]
[377880922,1754593842374,-460.0,0.00022191,2]
[377880923,1754593842384,-460.0,0.00022191,2]
[377880924,1754593842393,-499.40293251,0.00022191,2]
[377880925,1754593842402,-460.0,0.00022191,2]
[377880926,1754593842411,-460.0,0.00022191,2]
[377880927,1754593842420,-1789.34,0.00022191,2]
[377880928,1754593842431,-460.0,0.00022191,2]
[377880929,1754593842441,-464.83962237,0.00022191,2]
[377880930,1754593842450,-1510.96,0.00022191,2]
[377880931,1754593842460,-460.0,0.00022191,2]
[377880932,1754593842469,-460.0,0.00022191,2]
[377880933,1754593842478,-4440.87,0.00022191,2]
[377880934,1754593842487,-460.0,0.00022191,2]
[377880935,1754593842496,-460.0,0.00022191,2]
[377880936,1754593842506,-460.0,0.00022191,2]
[377880937,1754593842516,-460.0,0.00022191,2]
[377880938,1754593842526,-473.47606797,0.00022191,2]
[377880939,1754593842535,-489.02,0.00022191,2]
[377880940,1754593842545,-513.46,0.00022191,2]
[377880941,1754593842555,-460.0,0.00022191,2]
[377880942,1754593842565,-460.0,0.00022191,2]
[377880943,1754593842574,-460.0,0.00022191,2]
[377880944,1754593842586,-806.84,0.00022191,2]
[377880945,1754593842595,-460.0,0.00022191,2]
[377880946,1754593842604,-460.0,0.00022191,2]
[377880947,1754593842613,-460.0,0.00022191,2]
[377880948,1754593842622,-460.0,0.00022191,2]
[377880949,1754593842631,-460.0,0.00022191,2]
[377880950,1754593842640,-460.0,0.00022191,2]
[377880951,1754593842649,-460.0,0.00022191,2]
[377880952,1754593842658,-706.4,0.00022191,2]
[377880953,1754593842667,-460.0,0.00022191,2]
[377880954,1754593842676,-460.0,0.00022191,2]
[377880955,1754593842685,-460.0,0.00022191,2]
[377880956,1754593842695,-460.0,0.00022191,2]
[377880957,1754593842704,-460.0,0.00022191,2]
[377880958,1754593842713,-545.81,0.00022191,2]
[377880959,1754593842722,-461.21430086,0.00022191,2]
[377880960,1754593842732,-460.0,0.00022191,2]
[377880961,1754593842741,-460.0,0.00022191,2]
[377880962,1754593842751,-1158.33,0.00022191,2]
[377880963,1754593842760,-460.0,0.00022191,2]
[377880964,1754593842770,-460.0,0.00022191,2]
[377880965,1754593842781,-460.0,0.00022191,2]
[377880966,1754593842790,-1290.83,0.00022191,2]
[377880967,1754593842799,-460.0,0.00022191,2]
[377880968,1754593842810,-460.0,0.00022191,2]
[377880969,1754593842819,-1608.29,0.00022191,2]
[377880970,1754593842828,-580.71,0.00022191,2]
[377880971,1754593842839,-460.0,0.00022191,2]
[377880972,1754593842848,-1290.84,0.00022191,2]
[377880973,1754593842858,-460.0,0.00022191,2]
[377880974,1754593842867,-460.0,0.00022191,2]
[377880975,1754593842877,-2375.32,0.00022191,2]
[377880976,1754593842887,-469.59984286,0.00022191,2]
[377880977,1754593842896,-460.0,0.00022191,2]
[377880978,1754593842905,-460.0,0.00022191,2]
[377880980,1754593842914,-460.0,0.00022191,2]
[377880982,1754593842924,-460.0,0.00022191,2]
[377880984,1754593842933,-516.53,0.00022191,2]
[377880985,1754593842943,-789.88,0.00022191,2]
[377880986,1754593842952,-460.0,0.00022191,2]
[377880987,1754593842961,-460.0,0.00022191,2]
[377880988,1754593842970,-460.0,0.00022191,2]
[377880989,1754593842980,-460.0,0.00022191,2]
[377880990,1754593842990,-522.44431486,0.00022191,2]
[377880991,1754593842999,-460.0,0.00022191,2]
[377880992,1754593843008,-460.0,0.00022191,2]
[377880993,1754593843017,-460.0,0.00022191,2]
[377880994,1754593843026,-509.17,0.00022191,2]
[377880995,1754593843035,-460.0,0.00022191,2]
[377880996,1754593843045,-567.74946114,0.00022191,2]
[377880997,1754593843054,-460.0,0.00022191,2]
[377880998,1754593843063,-460.0,0.00022191,2]
[377880999,1754593843073,-460.0,0.00022191,2]
[377881000,1754593843083,-460.0,0.00022191,2]
[377881001,1754593843093,-460.0,0.00022191,2]
[377881003,1754593843103,-460.0,0.00022191,2]
[377881005,1754593843112,-460.0,0.00022191,2]
[377881007,1754593843122,-460.0,0.00022465,2]
[377881009,1754593843131,-460.0,0.00022465,2]
[377881010,1754593843140,-460.0,0.00022465,2]
[377881012,1754593843149,-809.2,0.00022465,2]
[377881013,1754593843158,-911.81,0.00022465,2]
[377881014,1754593843167,-460.0,0.00022465,2]
[377881015,1754593843176,-460.0,0.00022465,2]
[377881016,1754593843186,-460.0,0.00022465,2]
[377881017,1754593843195,-593.79,0.00022465,2]
[377881018,1754593843205,-460.0,0.00022465,2]
[377881019,1754593843214,-460.0,0.00022465,2]
[377881020,1754593843222,-1166.29,0.00022465,2]
[377881021,1754593843232,-460.0,0.00022465,2]
[377881022,1754593843241,-460.0,0.00022465,2]
[377881023,1754593843251,-460.0,0.00022465,2]
[377881024,1754593843260,-460.0,0.00022465,2]
[377881025,1754593843269,-460.0,0.00022465,2]
[377881026,1754593843278,-542.83,0.00022465,2]
[377881027,1754593843287,-460.0,0.00022465,2]
[377881028,1754593843296,-460.0,0.00022465,2]
[377881029,1754593843306,-460.0,0.00022465,2]
[377881030,1754593843315,-1494.38,0.00022465,2]
[377881031,1754593843324,-671.8,0.00022465,2]
[377881032,1754593843334,-533.46,0.00022465,2]
[377881033,1754593843345,-598.26,0.00022465,2]
[377881034,1754593843354,-501.83922112,0.00022465,2]
[377881035,1754593843364,-460.0,0.00022465,2]
[377881036,1754593843373,-460.0,0.00022465,2]
[377881037,1754593843383,-577.22863894,0.00022465,2]
[377881038,1754593843392,-460.0,0.00022465,2]
[377881039,1754593843402,-820.72,0.00022465,2]
[377881040,1754593843413,-460.0,0.00022465,2]
[377881041,1754593843423,-460.0,0.00022465,2]
[377881042,1754593843435,-460.0,0.00022465,2]
[377881043,1754593843445,-460.0,0.00022465,2]
[377881044,1754593843454,-460.0,0.00022465,2]
[377881045,1754593843464,-460.0,0.00022465,2]
[377881046,1754593843475,-634.93,0.00022465,2]
[377881047,1754593843486,-641.76,0.00022465,2]
[377881048,1754593843495,-461.67519469,0.00022465,2]
[377881049,1754593843507,-915.78,0.00022465,2]
[377881050,1754593843518,-966.26,0.00022465,2]
[377881051,1754593843527,-460.0,0.00022465,2]
[377881052,1754593843538,-718.07,0.00022465,2]
[377881053,1754593843548,-1628.99,0.00022465,2]
[377881054,1754593843558,-460.0,0.00022465,2]
[377881055,1754593843567,-1021.36,0.00022465,2]
[377881056,1754593843576,-460.0,0.00022465,2]
[377881057,1754593843586,-460.0,0.00022465,2]
[377881058,1754593843595,-513.46,0.00022465,2]
[377881059,1754593843604,-335.90930215,0.00022465,2]
[377881060,1754593843614,-460.0,0.00022465,2]
[377881061,1754593843623,-460.0,0.00022465,2]
[377881062,1754593843634,-416.48045482,0.00022465,2]
[377881063,1754593843643,-1789.34,0.00022465,2]
[377881064,1754593843652,-1510.96,0.00022465,2]
[377881065,1754593843661,-4440.87,0.00022465,2]
[377881066,1754593843670,-460.0,0.00022465,2]
[377881067,1754593843680,-460.0,0.00022465,2]
[377881068,1754593843690,-460.0,0.00022465,2]
[377881069,1754593843699,-460.0,0.00022465,2]
[377881070,1754593843708,-513.46,0.00022465,2]
[377881071,1754593843718,-460.0,0.00022465,2]
[377881072,1754593843727,-460.0,0.00022465,2]
[377881073,1754593843738,-806.84,0.00022465,2]
[377881074,1754593843748,-460.0,0.00022465,2]
[377881075,1754593843757,-212.64469959,0.00022465,2]
[377881076,1754593843766,-460.0,0.00022465,2]
[377881077,1754593843777,-460.0,0.00022465,2]
[377881078,1754593843787,-460.0,0.00022465,2]
[377881079,1754593843796,-460.0,0.00022465,2]
[377881080,1754593843805,-706.4,0.00022465,2]
[377881081,1754593843815,-460.0,0.00022465,2]
[377881082,1754593843824,-460.0,0.00022465,2]
[377881083,1754593843834,-460.0,0.00022465,2]
[377881084,1754593843843,-460.0,0.00022465,2]
[377881085,1754593843852,-545.81,0.00022465,2]
[377881086,1754593843861,-460.0,0.00022465,2]
[377881087,1754593843870,-460.0,0.00022465,2]
[377881088,1754593843880,-1158.33,0.00022465,2]
[377881089,1754593843890,-1290.83,0.00022465,2]
[377881090,1754593843899,-460.0,0.00022465,2]
[377881091,1754593843909,-460.0,0.00022465,2]
[377881092,1754593843918,-1608.29,0.00022465,2]
[377881093,1754593843928,-580.71,0.00022465,2]
[377881094,1754593843937,-477.32359781,0.00022465,2]
[377881095,1754593843946,-1290.84,0.00022465,2]
[377881096,1754593843956,-537.2454953,0.00022465,2]
[377881097,1754593843965,-2375.32,0.00022465,2]
[377881098,1754593843975,-460.0,0.00022465,2]
[377881099,1754593843985,-460.0,0.00022465,2]
[377881100,1754593843995,-460.0,0.00022465,2]
[377881101,1754593844004,-516.53,0.00022465,2]
[377881102,1754593844014,-789.88,0.00022465,2]
[377881103,1754593844023,-460.0,0.00022465,2]
[377881104,1754593844032,-460.0,0.00022465,2]
[377881105,1754593844041,-509.17,0.00022465,2]
[377881106,1754593844051,-154.66497834,0.00022465,2]
[377881107,1754593844060,-460.0,0.00022465,2]
[377881108,1754593844069,-460.0,0.00022465,2]
[377881109,1754593844078,-460.0,0.00022465,2]
[377881110,1754593844087,-2263.0,0.0002263,2]
[377881111,1754593844096,-2263.0,0.00022638,2]
[377881112,1754593844105,-492.36622643,0.00022639,2]
[377881113,1754593844114,-500.0,0.00022675,2]
[377881114,1754593844123,-504.35785339,0.00022721,2]
[377881115,1754593844132,-1000.0,0.00022721,2]
[377881116,1754593844142,-1000.0,0.00022721,2]
[377881117,1754593844150,-1000.0,0.00022721,2]
[377881118,1754593844159,-460.0,0.00022739,2]
[377881119,1754593844168,-460.0,0.00022739,2]
[377881120,1754593844178,-460.0,0.00022739,2]
[377881121,1754593844188,-809.2,0.00022739,2]
[377881122,1754593844198,-911.81,0.00022739,2]
[377881123,1754593844207,-460.0,0.00022739,2]
[377881124,1754593844217,-460.0,0.00022739,2]
[377881125,1754593844226,-593.79,0.00022739,2]
[377881126,1754593844236,-460.0,0.00022739,2]
[377881127,1754593844246,-460.0,0.00022739,2]
[377881128,1754593844255,-1166.29,0.00022739,2]
[377881129,1754593844265,-460.0,0.00022739,2]
[377881130,1754593844274,-153.7,0.00022739,2]
[377881131,1754593844283,-460.0,0.00022739,2]
[377881132,1754593844292,-460.0,0.00022739,2]
[377881133,1754593844301,-460.0,0.00022739,2]
[377881134,1754593844310,-542.83,0.00022739,2]
[377881135,1754593844320,-460.0,0.00022739,2]
[377881136,1754593844329,-460.0,0.00022739,2]
[377881137,1754593844338,-1494.38,0.00022739,2]
[377881138,1754593844347,-671.8,0.00022739,2]
[377881139,1754593844357,-598.26,0.00022739,2]
[377881140,1754593844366,-442.74834413,0.00022739,2]
[377881141,1754593844376,-460.0,0.00022739,2]
[377881142,1754593844385,-460.0,0.00022739,2]
[377881143,1754593844395,-820.72,0.00022739,2]
[377881144,1754593844404,-460.0,0.00022739,2]
[377881145,1754593844413,-460.0,0.00022739,2]
[377881146,1754593844422,-460.0,0.00022739,2]
[377881147,1754593844435,-460.0,0.00022739,2]
[377881148,1754593844444,-460.0,0.00022739,2]
[377881149,1754593844453,-634.93,0.00022739,2]
[377881150,1754593844462,-641.76,0.00022739,2]
[377881151,1754593844472,-915.78,0.00022739,2]
[377881152,1754593844483,-966.26,0.00022739,2]
[377881153,1754593844492,-460.0,0.00022739,2]
[377881154,1754593844501,-718.07,0.00022739,2]
[377881155,1754593844511,-1628.99,0.00022739,2]
[377881156,1754593844521,-1021.36,0.00022739,2]
[377881157,1754593844530,-460.0,0.00022739,2]
[377881158,1754593844540,-200.03954777,0.00022739,2]
[377881159,1754593844549,-513.46,0.00022739,2]
[377881160,1754593844559,-460.0,0.00022739,2]
[377881161,1754593844568,-460.0,0.00022739,2]
[377881162,1754593844578,-1789.34,0.00022739,2]
[377881163,1754593844589,-1510.96,0.00022739,2]
[377881164,1754593844599,-4440.87,0.00022739,2]
[377881165,1754593844609,-460.0,0.00022739,2]
[377881166,1754593844619,-460.0,0.00022739,2]
[377881167,1754593844630,-513.46,0.00022739,2]
[377881168,1754593844640,-460.0,0.00022739,2]
[377881169,1754593844650,-806.84,0.00022739,2]
[377881170,1754593844660,-460.0,0.00022739,2]
[377881171,1754593844670,-460.0,0.00022739,2]
[377881172,1754593844680,-460.0,0.00022739,2]
[377881173,1754593844690,-706.4,0.00022739,2]
[377881174,1754593844699,-460.0,0.00022739,2]
[377881175,1754593844709,-545.81,0.00022739,2]
[377881176,1754593844719,-460.0,0.00022739,2]
[377881177,1754593844729,-476.97,0.00022739,2]
[377881178,1754593844738,-1158.33,0.00022739,2]
[377881179,1754593844748,-460.0,0.00022739,2]
[377881180,1754593844757,-1290.83,0.00022739,2]
[377881181,1754593844767,-460.0,0.00022739,2]
[377881182,1754593844780,-1608.29,0.00022739,2]
[377881183,1754593844790,-580.71,0.00022739,2]
[377881184,1754593844801,-1290.84,0.00022739,2]
[377881185,1754593844811,-2375.32,0.00022739,2]
[377881186,1754593844821,-460.0,0.00022739,2]
[377881187,1754593844830,-460.0,0.00022739,2]
[377881188,1754593844840,-516.53,0.00022739,2]
[377881189,1754593844850,-789.88,0.00022739,2]
[377881190,1754593844860,-460.0,0.00022739,2]
[377881191,1754593844871,-460.0,0.00022739,2]
[377881192,1754593844881,-509.17,0.00022739,2]
[377881193,1754593844891,-460.0,0.00022739,2]
[377881194,1754593844901,-460.0,0.00022739,2]
[377881195,1754593844911,-460.0,0.00022739,2]
[377881196,1754593844920,-151.0,0.00022779,2]
[377881197,1754593844929,-300.0,0.00022779,2]
[377881198,1754593844939,-300.0,0.00022779,2]
[377881199,1754593844948,-300.0,0.00022779,2]
[377881200,1754593844957,-300.0,0.00022779,2]
[377881201,1754593844966,-300.0,0.00022779,2]
[377881202,1754593844975,-300.0,0.00022779,2]
[377881203,1754593844984,-300.0,0.00022779,2]
[377881204,1754593844994,-300.0,0.00022779,2]
[377881205,1754593845003,-300.0,0.00022779,2]
[377881206,1754593845012,-300.0,0.00022779,2]
[377881207,1754593845022,-300.0,0.00022779,2]
[377881208,1754593845031,-151.0,0.00022779,2]
[377881209,1754593845040,-151.0,0.00022779,2]
[377881210,1754593845049,-151.0,0.00022779,2]
[377881211,1754593845059,-151.0,0.00022779,2]
[377881212,1754593845068,-151.0,0.00022779,2]
[377881213,1754593845077,-151.0,0.00022779,2]
[377881214,1754593845086,-151.0,0.00022779,2]
[377881215,1754593845096,-151.0,0.00022779,2]
[377881216,1754593845105,-151.0,0.00022779,2]
[377881217,1754593845114,-151.0,0.00022779,2]
[377881218,1754593845124,-151.0,0.00022779,2]
[377881219,1754593845133,-2263.0,0.00022841,2]
[377881220,1754593845143,-2263.0,0.0002285,2]
[377881221,1754593845152,-500.0,0.00022908,2]
[377881222,1754593845161,-183.54014622,0.00022913,2]
[377881223,1754593845171,-160.0,0.0002293,2]
[377881224,1754593845180,-160.0,0.00022932,2]
[377881225,1754593845190,-160.0,0.00022932,2]
[377881226,1754593845199,-160.0,0.00022932,2]
[377881227,1754593845333,-215.31718835,0.00022932,2]
[377881228,1754593845360,-527.57568145,0.00022932,2]
[377881229,1754593845370,-160.0,0.00022932,2]
[377881230,1754593845379,-231.83071243,0.00022932,2]
[377881231,1754593845388,-312.16666667,0.00022932,2]
[377881232,1754593845398,-461.3695942,0.00022932,2]
[377881233,1754593845407,-216.52217562,0.00022932,2]
[377881234,1754593845416,-842.63596909,0.00022932,2]
[377881235,1754593845426,-12660.90439413,0.00022932,2]
[377881236,1754593845442,-160.0,0.00022932,2]
[377881237,1754593845455,-160.0,0.00022932,2]
[377881238,1754593845465,-2263.0,0.00022959,2]
[377881239,1754593845475,-160.0,0.00023,2]
[377881240,1754593845484,-200.0,0.00023012,15]
[377881241,1754593845494,-300.0,0.00023012,15]
[377881242,1754593845504,-460.0,0.00023013,2]
[377881243,1754593845514,-460.0,0.00023013,2]
[377881244,1754593845523,-809.2,0.00023013,2]
[377881245,1754593845532,-911.81,0.00023013,2]
[377881246,1754593845543,-460.0,0.00023013,2]
[377881247,1754593845552,-460.0,0.00023013,2]
[377881248,1754593845560,-593.79,0.00023013,2]
[377881249,1754593845570,-460.0,0.00023013,2]
[377881250,1754593845580,-460.0,0.00023013,2]
[377881251,1754593845590,-1166.29,0.00023013,2]
[377881252,1754593845599,-460.0,0.00023013,2]
[377881253,1754593845609,-460.0,0.00023013,2]
[377881254,1754593845619,-460.0,0.00023013,2]
[377881255,1754593845628,-460.0,0.00023013,2]
[377881256,1754593845637,-542.83,0.00023013,2]
[377881257,1754593845647,-460.0,0.00023013,2]
[377881258,1754593845656,-460.0,0.00023013,2]
[377881259,1754593845666,-1494.38,0.00023013,2]
[377881260,1754593845675,-671.8,0.00023013,2]
[377881261,1754593845684,-598.26,0.00023013,2]
[377881262,1754593845694,-460.0,0.00023013,2]
[377881263,1754593845703,-820.72,0.00023013,2]
[377881264,1754593845712,-460.0,0.00023013,2]
[377881265,1754593845721,-460.0,0.00023013,2]
[377881266,1754593845731,-460.0,0.00023013,2]
[377881267,1754593845741,-460.0,0.00023013,2]
[377881268,1754593845750,-460.0,0.00023013,2]
[377881269,1754593845759,-634.93,0.00023013,2]
[377881270,1754593845770,-641.76,0.00023013,2]